bitfinex/quotes_SOLUSD_20240708
["timestamp","ask_amount","ask_price","bid_price","bid_amount"]
[1720451885674,15.70766233,138.95,138.8,100.0]
[1720451885675,1.79957943,138.92,138.8,100.0]
[1720451885978,1.79957943,138.92,138.75,100.0]
[1720451885979,7.1991,138.91,138.83,100.0]
[1720451886154,16.48776629,138.92,138.83,100.0]
[1720451886355,1.79987532,138.93,138.86,100.0]
[1720451886778,8.99807532,138.93,138.86,100.0]
[1720451886965,8.99807532,138.93,138.87,0.17]
[1720451887167,7.1986,138.92,138.87,0.17]
[1720451887390,7.1979,138.93,138.87,0.17]
[1720451887558,1.79965399,138.92,138.82,121.6]
[1720451887893,30.21017241,138.95,138.84,100.0]
[1720451887894,11.14518779,138.94,138.84,100.0]
[1720451888062,0.17,138.91,138.78,100.0]
[1720451888386,7.2001,138.89,138.82,100.0]
[1720451888587,1.97043938,138.91,138.82,100.0]
[1720451888588,0.17,138.88,138.82,100.0]
[1720451888881,0.17,138.9,138.84,121.6]
[1720451889094,0.17,138.91,138.84,121.6]
[1720451889289,20.0,138.93,138.81,100.0]
[1720451889290,20.0,138.93,138.86,121.6]
[1720451889463,14.01658886,138.95,138.86,100.0]
[1720451889664,14.01658886,138.95,138.87,0.17]
[1720451889966,7.1979,138.93,138.88,100.0]
[1720451891069,7.1941,139.01,138.96,100.0]
[1720451891258,7.48529759,139.02,138.98,100.0]
[1720451891461,13.6138,139.03,139.0,100.0]
[1720451891657,7.1932,139.02,138.99,0.17]
[1720451891860,13.6137,139.03,138.99,0.17]
[1720451892155,6.421,139.03,138.99,0.17]
[1720451892480,4.54238475,139.04,139.02,0.17]
[1720451892784,4.54238475,139.04,139.03,100.17]
[1720451892956,6.421,139.09,139.05,100.0]
[1720451893165,7.1885,139.12,139.07,100.0]
[1720451893571,7.4864952,139.14,139.05,100.0]
[1720451893864,7.1891,139.1,139.04,0.17]
[1720451894064,1.79706606,139.14,139.06,0.17]
[1720451894065,7.1882,139.12,139.06,0.17]
[1720451894269,1.79706606,139.14,139.08,0.17]
[1720451894472,1.79706606,139.14,139.03,100.0]
[1720451894698,7.1912,139.06,139.02,0.17]
[1720451894898,7.1916,139.05,139.01,100.0]
[1720451895191,1.79784164,139.04,138.95,100.0]
[1720451895371,48.0,139.08,138.89,124.4839]
[1720451895372,6.421,139.05,138.93,100.0]
[1720451895573,19.9495384,139.04,138.94,100.0]
[1720451895874,20.17,139.03,138.94,100.0]
[1720451896085,1.96868408,139.02,138.9,100.0]
[1720451896284,17.9863,139.0,138.9,100.0]
[1720451896466,7.1967,138.96,138.92,100.0]
[1720451896660,20.0,138.95,138.9,100.0]
[1720451897177,20.0,138.95,138.93,100.0]
[1720451897375,20.0,138.97,138.96,100.0]
[1720451897597,20.0,138.97,138.94,100.0]
[1720451897773,1.79872881,139.03,138.94,100.0]
[1720451898099,7.1936,139.02,138.96,100.0]
[1720451898281,7.1937,139.01,138.97,0.17]
[1720451898596,1.96840705,139.0,138.9,100.0]
[1720451898889,1.79840705,139.0,138.88,100.0]
[1720451899101,17.9888,138.98,138.88,100.0]
[1720451899301,21.96917606,138.97,138.9,100.0]
[1720451899593,7.1974,138.94,138.87,100.0]
[1720451899793,22.13962541,138.93,138.87,100.0]
[1720451899964,7.1994,138.9,138.85,100.0]
[1720451900166,27.2,138.89,138.85,100.0]
[1720451900388,7.2006,138.88,138.83,100.0]
[1720451900601,20.0,138.89,138.81,100.0]
[1720451900602,27.201,138.87,138.81,100.0]
[1720451900890,7.2021,138.85,138.81,100.0]
[1720451901090,7.2031,138.83,138.78,21.6]
[1720451901305,20.0,138.82,138.77,100.0]
[1720451901684,7.2031,138.83,138.77,100.0]
[1720451901881,27.2036,138.82,138.77,100.0]
[1720451902093,7.2036,138.82,138.77,100.0]
[1720451902295,20.0,138.81,138.77,121.6]
[1720451902481,20.0,138.81,138.68,20.86469991]
[1720451902482,20.0,138.81,138.79,121.6]
[1720451902674,21.80088629,138.88,138.79,121.6]
[1720451902908,0.17,138.87,138.83,100.0]
[1720451903200,7.1995,138.9,138.85,100.0]
[1720451903779,1.44754546,138.89,138.81,100.0]
[1720451904008,7.2019,138.86,138.8,0.17]
[1720451904185,7.2002,138.89,138.83,100.0]
[1720451904380,1.80040368,138.91,138.83,100.0]
[1720451904381,7.1995,138.9,138.83,100.0]
[1720451904583,20.0,138.89,138.85,100.0]
[1720451904806,21.79994317,138.91,138.83,121.6]
[1720451905008,21.79994317,138.91,138.81,100.0]
[1720451905322,21.79994317,138.91,138.78,100.0]
[1720451905530,7.202,138.85,138.78,100.0]
[1720451905810,20.0,138.84,138.83,121.6]
[1720451906386,20.0,138.84,138.83,100.0]
[1720451906603,20.0,138.84,138.82,0.17]
[1720451906802,20.0,138.86,138.81,100.0]
[1720451907007,1.80029565,138.89,138.81,100.0]
[1720451907301,0.17,138.88,138.81,121.6]
[1720451907503,0.17,138.88,138.83,100.0]
[1720451907681,6.6631,138.92,138.87,100.0]
[1720451907883,14.69276337,138.96,138.89,100.0]
[1720451908094,7.1964,138.96,138.9,0.17]
[1720451908311,15.55088715,138.98,138.92,0.17]
[1720451908476,1.79934449,138.98,138.89,100.0]
[1720451908682,1.79934449,138.98,138.91,100.0]
[1720451908891,1.7989828,138.98,138.92,0.17]
[1720451909090,6.6631,138.99,138.94,0.17]
[1720451909290,15.0,139.07,138.87,7.2008]
[1720451909291,6.6631,139.05,138.96,0.17]
[1720451909493,7.1941,139.01,138.96,0.17]
[1720451909786,9.32345673,139.04,138.97,21.6]
[1720451910119,9.32345673,139.04,138.91,100.0]
[1720451910120,7.1932,139.02,138.94,100.0]
[1720451910305,1.79854066,139.04,138.95,0.17]
[1720451910306,7.1937,139.01,138.95,0.17]
[1720451910508,1.44938001,139.0,138.9,100.0]
[1720451910707,7.1989,138.91,138.87,100.0]
[1720451910935,7.1986,138.92,138.87,100.0]
[1720451911096,20.0,138.91,138.87,100.0]
[1720451911595,1.79966307,138.97,138.86,100.0]
[1720451911596,17.9908,138.96,138.86,100.0]
[1720451911787,7.1998,138.9,138.86,100.0]
[1720451911986,20.0,138.89,138.85,21.6]
[1720451912218,27.2003,138.89,138.81,100.0]
[1720451912416,20.0,138.89,138.88,100.0]
[1720451912660,0.17,138.95,138.9,100.0]
[1720451912794,0.17,138.95,138.88,100.0]
[1720451912997,1.79924001,138.98,138.88,100.0]
[1720451913512,1.44868066,139.02,138.95,0.17]
[1720451913719,48.04,139.04,138.96,100.0]
[1720451913720,8.9915464,139.03,138.96,100.0]
[1720451913893,8.46156657,139.05,138.98,100.0]
[1720451914095,17.6422505,139.07,138.91,100.0]
[1720451914096,5.44318858,139.06,139.02,100.0]
[1720451914302,6.6631,139.11,139.05,0.17]
[1720451914523,7.1897,139.09,139.04,100.0]
[1720451914816,7.19,139.09,139.03,0.17]
[1720451915116,26.43203488,139.11,139.05,1.06568305]
[1720451915287,6.6631,139.11,139.06,0.17]
[1720451915491,6.6631,139.11,139.06,100.17]
[1720451915721,7.1879,139.13,139.08,100.0]
[1720451915926,7.1879,139.13,139.09,0.75006404]
[1720451916295,7.1881,139.12,139.09,0.58006404]
[1720451916520,7.189,139.11,139.09,0.58006404]
[1720451916743,17.9691,139.13,139.04,0.17]
[1720451917034,1.79733923,139.12,139.04,0.17]
[1720451917237,17.9724,139.11,139.01,100.0]
[1720451917417,1.79762421,139.1,139.01,100.0]
[1720451917621,7.1908,139.07,139.02,1.0663239]
[1720451917808,20.0,139.06,138.97,0.17]
[1720451918009,1.62017509,139.09,139.02,100.0]
[1720451918235,1.62017509,139.09,139.0,100.0]
[1720451918406,0.17,139.08,139.0,100.0]
[1720451918610,7.1942,139.0,138.96,100.0]
[1720451918822,20.0,138.99,138.94,100.0]
[1720451919030,20.0,138.99,138.9,100.0]
[1720451919031,20.0,138.99,138.96,100.0]
[1720451919243,20.0,139.01,138.96,121.6]
[1720451919429,7.1947,139.0,138.94,100.0]
[1720451919620,7.1957,138.98,138.92,100.0]
[1720451919822,20.0,138.97,138.92,100.0]
[1720451920024,20.0,139.01,138.92,100.0]
[1720451920025,7.1951,138.99,138.92,100.0]
[1720451920212,20.0,138.98,138.93,21.6]
[1720451920422,0.17,139.0,138.94,0.36992104]
[1720451920721,0.17,139.0,138.94,100.36992104]
[1720451920722,7.1958,138.97,138.94,100.36992104]
[1720451920923,20.0,138.96,138.95,1.0692433]
[1720451921123,20.0,138.96,138.93,1.06924329]
[1720451921316,20.0,138.96,138.95,100.0]
[1720451921518,20.0,138.96,138.93,122.66924329]
[1720451921712,7.1953,138.98,138.93,1.06924329]
[1720451922016,20.0,138.97,138.93,101.06924329]
[1720451922318,8.46189531,139.05,138.99,100.0]
[1720451922521,6.6631,139.05,138.99,100.0]
[1720451922815,6.6631,139.05,138.97,121.6]
[1720451922816,8.46106787,139.05,138.97,121.6]
[1720451923021,6.6631,139.05,138.97,100.0]
[1720451923324,7.1947,139.0,138.94,100.0]
[1720451923527,7.1947,139.0,138.9,100.0]
[1720451923528,1.79817881,139.04,138.95,0.17]
[1720451923751,7.1947,139.0,138.94,100.0]
[1720451924063,7.1947,139.0,138.9,100.0]
[1720451924064,6.6631,139.05,138.98,100.0]
[1720451924212,7.1921,139.04,138.98,121.6]
[1720451924643,13.8548,139.05,139.0,100.0]
[1720451925421,7.1927,139.03,138.99,0.17]
[1720451925626,20.0,139.04,138.91,125.195]
[1720451925627,27.1933,139.02,138.96,121.6]
[1720451925942,27.1933,139.02,138.98,100.0]
[1720451925943,7.1933,139.02,138.98,100.0]
[1720451926150,20.0,139.01,138.97,0.17]
[1720451926511,7.1949,138.99,138.93,121.6]
[1720451926745,20.0,138.98,138.93,121.6]
[1720451926916,20.0,138.98,138.92,100.0]
[1720451927119,7.52823297,139.01,138.96,100.0]
[1720451927435,6.6631,139.05,138.96,100.0]
[1720451927748,21.7981913,139.04,138.94,100.0]
[1720451927957,17.9818,139.03,138.92,100.0]
[1720451928249,21.79860441,139.02,138.94,100.0]
[1720451928537,20.0,139.02,138.96,100.0]
[1720451928843,6.6631,139.05,139.0,100.0]
[1720451929013,7.1922,139.04,138.98,100.0]
[1720451929215,6.6631,139.05,139.0,100.0]
[1720451929415,6.6631,139.05,139.01,0.17]
[1720451929615,7.1922,139.04,138.98,100.0]
[1720451929918,7.1928,139.03,138.99,1.06759781]
[1720451930147,1.79815652,139.04,138.96,100.0]
[1720451930325,20.0,139.02,138.98,100.0]
[1720451930645,20.0,139.04,138.98,121.6]
[1720451931030,5.65169204,139.09,139.04,100.0]
[1720451931341,7.5250589,139.1,139.09,0.17]
[1720451931555,7.1865,139.15,139.1,100.0]
[1720451931753,6.1327,139.16,139.1,100.0]
[1720451931969,6.1327,139.16,139.11,0.17]
[1720451932661,6.1327,139.16,139.09,0.17]
[1720451933023,7.1869,139.15,139.09,0.17]
[1720451933228,20.0,139.14,139.09,0.62308783]
[1720451933453,21.96688428,139.15,139.08,100.0]
[1720451933669,7.3571,139.14,139.09,0.17]
[1720451933861,20.0,139.13,139.09,0.17]
[1720451934149,6.1327,139.16,139.09,100.17]
[1720451934349,13.3189,139.16,139.11,100.0]
[1720451934557,13.3189,139.16,139.09,121.77]
[1720451934762,13.3189,139.16,139.11,100.0]
[1720451934961,6.1327,139.16,139.09,121.77]
[1720451935138,6.1327,139.16,139.11,100.0]
[1720451935461,20.0,139.15,139.12,0.17]
[1720451935755,20.0,139.15,139.13,100.0]
[1720451935959,20.0,139.17,139.14,0.45565277]
[1720451936339,7.51993259,139.19,139.07,100.0]
[1720451936340,7.1868,139.15,139.07,100.0]
[1720451936657,27.187,139.14,139.07,21.6]
[1720451936836,20.0,139.14,139.08,100.0]
[1720451937546,20.0,139.13,139.09,0.17]
[1720451938137,21.7967041,139.18,139.09,0.17]
[1720451938344,0.34,139.17,139.09,1.23425392]
[1720451938751,7.186,139.16,139.09,122.83425392]
[1720451939057,20.0,139.15,139.12,0.17]
[1720451939352,20.0,139.15,139.12,1.06376714]
[1720451939561,21.79655599,139.15,139.09,100.0]
[1720451939729,20.34,139.14,139.09,100.0]
[1720451939931,20.34,139.14,139.07,121.6]
[1720451940149,27.5273,139.14,139.09,100.0]
[1720451940343,20.0,139.14,139.09,100.0]
[1720451940539,20.0,139.14,139.09,121.6]
[1720451940868,0.17,139.13,139.09,100.0]
[1720451941035,20.17,139.14,139.09,100.0]
[1720451941238,20.17,139.14,139.03,7.1921]
[1720451941239,21.96679142,139.14,139.05,0.89553733]
[1720451941560,1.96717086,139.13,139.04,21.6]
[1720451941765,7.1896,139.09,139.03,100.0]
[1720451941957,20.0,139.08,139.06,100.0]
[1720451942151,9.29706926,139.16,139.08,100.0]
[1720451942330,20.0,139.14,139.08,100.0]
[1720451942730,20.0,139.14,139.04,100.0]
[1720451942731,21.79687346,139.14,139.04,100.0]
[1720451942965,0.17,139.13,139.06,100.0]
[1720451943257,0.34,139.13,139.06,100.0]
[1720451943556,19.76083997,139.17,139.1,100.0]
[1720451943557,7.1861,139.16,139.1,100.0]
[1720451943867,7.52009047,139.19,139.15,100.0]
[1720451944033,1.79595792,139.25,139.17,121.6]
[1720451944228,1.79548055,139.27,139.2,0.17]
[1720451944464,11.03355777,139.28,139.22,0.17]
[1720451944638,7.1813,139.25,139.18,0.17]
[1720451944961,1.79538599,139.27,139.18,1.06100571]
[1720451945146,7.1837,139.21,139.18,1.06100571]
[1720451945345,1.79556766,139.26,139.2,0.17]
[1720451945546,12.82896691,139.28,139.2,0.17]
[1720451945736,7.1814,139.25,139.2,0.17]
[1720451945932,7.92810914,139.28,139.22,0.17]
[1720451946244,7.1814,139.25,139.2,0.17]
[1720451946443,7.92810914,139.28,139.18,0.17]
[1720451946444,1.79544175,139.27,139.18,0.17]
[1720451946641,7.1824,139.23,139.18,0.17]
[1720451946842,1.79563778,139.22,139.17,100.0]
[1720451947159,69.83590451,139.25,139.14,0.36924772]
[1720451947341,17.9578,139.22,139.14,0.36924772]
[1720451947537,21.9664138,139.21,139.14,0.36924772]
[1720451947744,21.9664138,139.21,139.11,100.0]
[1720451947745,7.186,139.16,139.11,100.0]
[1720451947937,20.0,139.15,139.11,100.0]
[1720451948146,7.1858,139.17,139.11,100.0]
[1720451948354,20.0,139.16,139.13,100.0]
[1720451948663,7.1844,139.19,139.11,100.0]
[1720451948870,21.96638801,139.18,139.11,100.0]
[1720451949078,7.1872,139.14,139.09,100.0]
[1720451949248,20.0,139.13,139.09,100.0]
[1720451949448,20.0,139.13,139.11,100.0]
[1720451949764,20.0,139.17,139.11,121.6]
[1720451949939,28.98062596,139.2,139.13,121.6]
[1720451950138,1.79632596,139.24,139.16,100.0]
[1720451950336,1.79632596,139.24,139.17,0.17]
[1720451950337,8.97755186,139.24,139.17,0.17]
[1720451950573,7.1835,139.21,139.14,100.0]
[1720451950847,7.1865,139.15,139.1,100.0]
[1720451951046,7.184,139.2,139.14,100.0]
[1720451951299,1.79604679,139.26,139.17,100.0]
[1720451951561,8.97694679,139.26,139.19,100.0]
[1720451951876,7.1814,139.25,139.19,100.0]
[1720451952051,1.79547051,139.24,139.16,100.0]
[1720451952247,7.1823,139.24,139.17,0.17]
[1720451952463,17.9532,139.26,139.17,0.17]
[1720451952664,19.74890437,139.26,139.14,100.0]
[1720451952863,7.1823,139.24,139.18,0.17]
[1720451953245,7.1824,139.23,139.17,100.0]
[1720451953451,7.1819,139.24,139.18,0.17]
[1720451953648,1.79563986,139.27,139.2,0.17]
[1720451953883,1.7954672,139.26,139.2,0.17]
[1720451954057,19.7478672,139.26,139.18,0.17]
[1720451954373,19.7478672,139.26,139.16,0.17]
[1720451954374,17.9555,139.24,139.16,0.17]
[1720451954552,7.1849,139.18,139.13,100.0]
[1720451954749,9.48281741,139.23,139.17,100.0]
[1720451954970,0.17,139.22,139.17,100.0]
[1720451955144,8.63306236,139.27,139.19,121.6]
[1720451955340,1.79525445,139.26,139.18,100.0]
[1720451955579,1.79525445,139.26,139.16,100.0]
[1720451955782,7.1876,139.13,139.11,100.0]
[1720451955944,48.04,139.22,139.09,100.0]
[1720451956147,7.1879,139.13,139.06,100.0]
[1720451956443,17.9649,139.16,139.06,100.0]
[1720451956444,0.34,139.14,139.06,100.0]
[1720451956641,0.17,139.14,139.08,100.0]
[1720451957050,7.3571,139.14,139.08,121.6]
[1720451957266,20.0,139.13,139.08,121.6]
[1720451957478,7.1889,139.11,139.06,100.0]
[1720451957776,7.1898,139.09,139.04,100.0]
[1720451958078,7.1907,139.07,139.02,100.0]
[1720451958371,20.17,139.06,138.98,100.0]
[1720451958574,0.17,139.05,139.0,100.0]
[1720451958886,0.17,139.06,139.0,100.0]
[1720451959050,7.1896,139.09,139.02,100.0]
[1720451959244,27.5303,139.08,139.01,21.6]
[1720451959564,27.5303,139.08,139.0,100.0]
[1720451959565,1.79768677,139.07,139.02,0.36763536]
[1720451959768,7.1926,139.03,139.02,0.36763536]
[1720451959948,20.17,139.03,138.96,121.6]
[1720451960148,20.0,139.02,138.98,100.0]
[1720451960348,20.0,139.02,139.0,100.0]
[1720451960579,20.0,139.02,138.98,100.0]
[1720451960767,7.1934,139.02,138.96,100.0]
[1720451960973,20.0,139.01,138.96,100.0]
[1720451961158,7.3633,139.02,138.96,121.6]
[1720451961353,20.0,139.01,138.96,121.6]
[1720451961555,20.0,139.01,138.96,100.0]
[1720451962072,20.0,139.01,138.94,100.0]
[1720451962073,27.1937,139.01,138.94,100.0]
[1720451962286,0.34,139.0,138.91,100.0]
[1720451962577,7.196,138.97,138.91,100.0]
[1720451962775,20.17,138.96,138.91,100.0]
[1720451962949,20.0,138.96,138.93,100.0]
[1720451963146,20.0,138.96,138.91,100.0]
[1720451963555,7.1948,138.99,138.91,100.0]
[1720451963751,27.5354,138.98,138.91,100.0]
[1720451963974,0.17,138.97,138.91,100.0]
[1720451964369,27.3654,138.98,138.93,100.0]
[1720451964370,27.3653,138.98,138.93,100.0]
[1720451964681,1.79899057,139.01,138.95,100.0]
[1720451964852,7.1933,139.02,138.95,100.0]
[1720451965052,8.99011242,139.05,138.99,100.0]
[1720451965383,1.79804016,139.06,138.97,100.0]
[1720451965690,17.9818,139.03,138.98,0.69974048]
[1720451965986,1.79853992,139.05,138.98,0.17]
[1720451966162,17.9838,139.02,138.91,100.0]
[1720451966489,2.13908365,139.01,138.91,100.0]
[1720451966679,7.1958,138.97,138.91,100.0]
[1720451966853,0.17,138.96,138.91,100.0]
[1720451967250,7.1968,138.95,138.92,0.41196844]
[1720451967555,7.1968,138.95,138.91,100.0]
[1720451967556,20.0,138.94,138.88,121.6]
[1720451967767,20.0,138.94,138.88,100.0]
[1720451967964,20.0,138.94,138.86,100.0]
[1720451968166,20.0,138.94,138.87,100.0]
[1720451968376,1.79936451,138.95,138.87,100.0]
[1720451968586,0.17,138.94,138.88,0.17]
[1720451968770,0.17,138.94,138.89,100.0]
[1720451968969,0.17,138.94,138.9,0.17]
[1720451969173,0.17,138.94,138.87,121.6]
[1720451969388,7.1983,138.93,138.87,100.0]
[1720451969683,7.1993,138.91,138.84,100.0]
[1720451969888,20.0,138.9,138.84,100.0]
[1720451970471,20.0,138.9,138.86,100.0]
[1720451970670,20.0,138.91,138.86,100.0]
[1720451970867,0.17,138.9,138.84,100.0]
[1720451971100,20.0,138.9,138.86,100.0]
[1720451971467,20.0,138.9,138.88,100.0]
[1720451971791,20.0,138.93,138.89,0.17]
[1720451971975,20.0,138.94,138.89,0.17]
[1720451972170,27.1973,138.94,138.89,0.17]
[1720451972372,20.0,138.94,138.89,0.17]
[1720451972563,1.79937455,138.93,138.86,100.0]
[1720451972763,5.81227538,138.97,138.9,0.17]
[1720451973066,1.79895534,139.01,138.95,100.0]
[1720451973270,8.99020235,139.05,138.98,0.17]
[1720451973468,1.79802751,139.06,138.98,100.86971]
[1720451973769,7.1925,139.04,138.98,100.86971]
[1720451973970,1.79825304,139.06,138.98,0.86971]
[1720451974201,1.79825304,139.06,138.98,0.17]
[1720451974366,1.79825304,139.06,138.99,100.0]
[1720451974562,1.79825304,139.06,139.0,0.8695591]
[1720451974798,7.1917,139.05,139.0,0.8695591]
[1720451975463,7.1917,139.05,138.99,0.17]
[1720451975668,0.17,139.04,138.99,0.86960942]
[1720451976378,20.17,139.04,138.99,100.86960942]
[1720451976580,0.17,139.04,138.99,100.86960942]
[1720451976782,28.98875752,139.07,138.99,100.86960942]
[1720451977032,11.5720953,139.11,139.05,0.17]
[1720451977294,11.69536806,139.13,139.07,0.17]
[1720451977483,13.49245287,139.13,139.07,0.17]
[1720451977684,7.1881,139.12,139.07,0.17]
[1720451978003,5.13276806,139.13,139.08,100.0]
[1720451978505,1.79691174,139.16,139.09,0.17]
[1720451978682,15.05376886,139.17,139.11,0.17]
[1720451979176,1.7966167,139.17,139.08,100.0]
[1720451979370,7.1863,139.16,139.1,100.0]
[1720451979594,7.1863,139.16,139.11,0.17]
[1720451980105,7.1865,139.15,139.11,0.17]
[1720451980308,7.1872,139.14,139.08,100.0]
[1720451980465,7.1876,139.13,139.09,0.17]
[1720451980680,7.1891,139.1,139.04,100.0]
[1720451980899,20.0,139.09,139.06,0.17]
[1720451981204,1.96734187,139.11,139.06,0.69774171]
[1720451981404,7.1936,139.02,138.96,100.0]
[1720451981697,20.0,139.01,138.97,0.69833767]
[1720451981904,20.0,139.01,138.94,100.0]
[1720451982201,20.0,139.01,138.89,6.0595]
[1720451982514,2.13863981,139.0,138.91,100.0]
[1720451982672,7.1953,138.98,138.91,100.0]
[1720451982870,20.0,138.97,138.93,121.6]
[1720451983070,20.0,138.97,138.93,100.0]
[1720451983587,21.96892279,139.0,138.93,100.0]
[1720451983785,27.1948,138.99,138.93,100.0]
[1720451984090,7.3653,138.98,138.92,21.6]
[1720451984275,20.0,138.97,138.91,200.0]
[1720451984479,20.17,138.97,138.91,100.0]
[1720451984668,0.17,138.96,138.91,200.0]
[1720451985175,7.3663,138.96,138.91,100.0]
[1720451985370,20.0,138.95,138.91,200.0]
[1720451985594,0.17,138.96,138.91,200.0]
[1720451986407,0.17,138.96,138.89,100.0]
[1720451986767,20.17,138.96,138.89,100.0]
[1720451986976,20.17,138.96,138.89,121.6]
[1720451987200,7.3669,138.95,138.89,100.0]
[1720451987388,20.17,138.94,138.89,100.0]
[1720451987796,20.17,138.94,138.91,100.0]
[1720451987797,20.0,138.94,138.91,100.0]
[1720451987995,21.79929292,138.96,138.9,0.17]
[1720451988175,2.13936247,138.95,138.9,0.17]
[1720451988497,0.34,138.95,138.9,0.17]
[1720451988701,20.34,138.96,138.91,100.0]
[1720451988997,20.34,138.96,138.9,0.17]
[1720451988998,8.99644209,138.95,138.9,0.17]
[1720451989186,20.17,138.94,138.9,0.17]
[1720451989903,20.0,138.93,138.9,0.17]
[1720451990208,0.17,138.94,138.89,0.17]
[1720451990406,0.17,138.94,119.06,0.04976841]
[1720451990407,2.13940982,138.94,138.85,100.0]
[1720451990796,7.1986,138.92,138.85,100.0]
[1720451990999,7.1986,138.92,138.8,125.2155]
[1720451991000,6.3944,138.9,138.77,100.0]
[1720451991206,7.2015,138.86,138.77,121.6]
[1720451991505,9.34320818,138.85,138.77,100.0]
[1720451991706,29.00334787,138.84,138.77,100.0]
[1720451991877,0.34,138.83,138.77,100.0]
[1720451992076,7.2048,138.8,138.77,100.0]
[1720451992313,7.2056,138.78,138.71,100.0]
[1720451992477,1.80132463,138.85,138.78,100.0]
[1720451992683,7.2037,138.82,138.75,100.0]
[1720451992880,1.97070634,138.84,138.75,100.0]
[1720451992881,20.0,138.81,138.75,100.0]
[1720451993079,7.3726,138.84,138.78,100.0]
[1720451993284,20.0,138.83,138.78,100.0]
[1720451993503,27.2031,138.83,138.79,0.17]
[1720451993690,27.2031,138.83,138.79,0.70628057]
[1720451993691,20.0,138.83,138.79,0.70628057]
[1720451993875,7.2062,138.77,138.72,100.0]
[1720451994081,7.2072,138.75,138.68,100.0]
[1720451994286,20.0,138.74,138.7,100.0]
[1720451994889,20.0,138.78,138.72,100.0]
[1720451995094,7.3761,138.77,138.7,100.0]
[1720451995387,20.0,138.76,138.7,100.0]
[1720451995806,1.97156214,138.77,138.68,100.0]
[1720451996111,7.2072,138.75,138.68,100.0]
[1720451996296,27.2081,138.74,138.68,100.0]
[1720451996502,0.34,138.75,138.68,100.0]
[1720451996699,21.97204905,138.76,138.67,100.0]
[1720451996898,0.17,138.75,138.67,100.0]
[1720451997105,1.97224121,138.75,138.68,100.0]
[1720451997303,0.17,138.74,138.68,100.0]
[1720451997610,7.2081,138.74,138.68,100.0]
[1720451997824,20.17,138.73,138.68,100.0]
[1720451998120,20.0,138.73,138.65,100.0]
[1720451998411,0.17,138.72,138.65,100.0]
[1720451998799,7.2071,138.76,138.69,100.0]
[1720451998994,7.3773,138.75,138.69,100.0]
[1720451999411,1.80194089,138.74,138.68,0.17]
[1720451999708,7.3773,138.75,138.69,100.0]
[1720451999909,1.80217903,138.77,138.71,100.0]
[1720452000117,1.80217903,138.77,138.72,0.17]
[1720452000118,7.2062,138.77,138.72,0.17]